Workbook

Sheet 目录
B2: 部门预算公开表目录
B3: 序号 | C3: 名称 | D3: 备注
B4: 1 | C4: 2023年部门收支总体情况表
B5: 2 | C5: 2023年部门收入总体情况表
B6: 3 | C6: 2023年部门支出总体情况表
B7: 4 | C7: 2023年财政拨款收支总体情况表
B8: 5 | C8: 2023年一般公共预算支出情况表
B9: 6 | C9: 2023年一般公共预算基本支出情况表
B10: 7 | C10: 2023年一般公共预算“三公”经费预算表
B11: 8 | C11: 2023年政府性基金预算支出情况表
B12: 9 | C12: 2023年整体支出绩效目标表
B13: 10 | C13: 2023年项目支出绩效目标表

Sheet 部门收支总体情况表
A2: 2023年部门收支总体情况表
A3: 部门：114_临湘市市场监督管理局
D4: 单位：万元
A5: 收 入 | C5: 支 出
A6: 项 目 | B6: 预算数 | C6: 项 目 | D6: 预算数
A7: 一、一般公共预算财政拨款收入 | B7: =SUM(B8:B9) -> 3,223.50 | C7: 一、[201]一般公共服务支出 | D7: 2,644.46
A8: 经费拨款 | B8: 2,603.50 | C8: 二、[202]外交支出
A9: 纳入预算管理的非税收入拨款 | B9: 620.00 | C9: 三、[203]国防支出
A10: 二、财政专户管理资金收入 | C10: 四、[204]公共安全支出
A11: 三、政府性基金预算收入 | C11: 五、[205]教育支出
A12: 四、事业单位经营服务收入 | C12: 六、[206]科学技术支出
A13: 五、上级补助收入 | C13: 七、[207]文化旅游体育与传媒支出
A14: 六、附属单位上缴收入 | C14: 八、[208]社会保障和就业支出 | D14: 266.95
A15: 七、其他收入 | C15: 九、[209]社会保险基金支出
C16: 十、[210]卫生健康支出 | D16: 124.84
C17: 十一、[211]节能环保支出
C18: 十二、[212]城乡社区支出
C19: 十三、[213]农林水支出
C20: 十四、[214]交通运输支出
C21: 十五、[215]资源勘探工业信息等支出
C22: 十六、[216]商业服务业等支出
C23: 十七、[217]金融支出
C24: 十八、[219]援助其他地区支出
C25: 十九、[220]自然资源海洋气象等支出
C26: 二十、[221]住房保障支出 | D26: 187.26
C27: 二十一、[222]粮油物资储备支出
C28: 二十二、[223]国有资本经营预算支出
C29: 二十三、[224]灾害防治及应急管理支出
C30: 二十四、[227]预备费
C31: 二十五、[229]其他支出
C32: 二十六、[230]转移性支出
C33: 二十七、[231]债务还本支出
C34: 二十八、[232]债务付息支出
C35: 二十九、[233]债务发行费用支出
C36: 三十、[234]抗疫特别国债安排的支出
A39: 本年收入合计 | B39: 3,223.50 | C39: 本年支出合计 | D39: 3,223.50
A40: 收入总计 | B40: 3,223.50 | C40: 支出总计 | D40: 3,223.50

Sheet 部门收入总体情况表
A2: 2023年部门收入总体情况表
A3: 部门：114_临湘市市场监督管理局
A4: 单位：万元
A5: 单位 | C5: 总计 | D5: 本年收入
A6: 编码 | B6: 名称 | D6: 合计 | E6: 一般公共预算财政拨款收入 | F6: 政府性基金预算收入 | G6: 事业单位经营服务收入 | H6: 上级补助收入 | I6: 附属单位上缴收入 | J6: 其他收入 | K6: 财政专户管理资金收入
A8: 总计： | C8: 3,223.50 | D8: 3,223.50 | E8: 3,223.50
A9: 114 | B9: 临湘市市场监督管理局 | C9: 3,223.50 | D9: 3,223.50 | E9: 3,223.50
A10: 114001 | B10: 临湘市市场监督管理局 | C10: 3,223.50 | D10: 3,223.50 | E10: 3,223.50

Sheet 部门支出总体情况表
A2: 2023年部门支出总体情况表
A3: 部门：114_临湘市市场监督管理局
A4: 单位：万元
A5: 单位 | C5: 总计 | D5: 基本支出 | G5: 项目支出
A6: 编码 | B6: 名称 | D6: 合计 | E6: 人员类 | F6: 公用经费 | G6: 合计 | H6: 其他运转类 | I6: 特定目标类
A7: 总计: | C7: =D7+G7 -> 3,223.50 | D7: 2,562.74 | E7: 2,293.54 | F7: 269.20 | G7: 660.76 | I7: 660.76
A8: 114001 | B8: 临湘市市场监督管理局 | C8: 3,223.50 | D8: 2,562.74 | E8: 2,293.54 | F8: 269.20 | G8: 660.76 | I8: 660.76
A9: 201 | B9: 一般公共服务支出 | C9: =D9+G9 -> 2,644.46 | D9: =SUM(E9:F9) -> 1,983.70 | E9: 1,714.50 | F9: 269.20 | G9: =SUM(H9:I9) -> 660.76 | I9: 660.76
A10: 20138 | B10: 市场监督管理事务 | C10: =D10+G10 -> 2,644.46 | D10: =SUM(E10:F10) -> 1,983.70 | E10: 1,714.50 | F10: 269.20 | G10: 660.76 | I10: 660.76
A11: 2013801 | B11: 行政运行 | C11: =D11+G11 -> 1,983.70 | D11: 1,983.70 | E11: 1,714.50 | F11: 269.20 | G11: 0.00
A12: 2013804 | B12: 市场主体管理 | C12: 7.00 | D12: 0.00 | G12: 7.00 | I12: 7.00
A13: 2013805 | B13: 市场秩序执法 | C13: 5.00 | D13: 0.00 | G13: 5.00 | I13: 5.00
A14: 2013816 | B14: 食品安全监管 | C14: 648.76 | D14: 0.00 | G14: 648.76 | I14: 648.76
A15: 208 | B15: 社会保障和就业支出 | C15: 266.95 | D15: =SUM(E15:F15) -> 266.95 | E15: 266.95
A16: 20805 | B16: 行政事业单位养老支出 | C16: 250.94 | D16: 250.94 | E16: 250.94
A17: 2080505 | B17: 机关事业单位基本养老保险缴费支出 | C17: 249.52 | D17: 249.52 | E17: 249.52
A18: 2080506 | B18: 机关事业单位职业年金缴费支出 | C18: 1.41 | D18: 1.41 | E18: 1.41
A19: 20899 | B19: 其他社会保障和就业支出 | C19: 16.01 | D19: 16.01 | E19: 16.01
A20: 2089999 | B20: 其他社会保障和就业支出 | C20: 16.01 | D20: 16.01 | E20: 16.01
A21: 210 | B21: 卫生健康支出 | C21: 124.84 | D21: 124.84 | E21: 124.84
A22: 21011 | B22: 行政事业单位医疗 | C22: 124.84 | D22: 124.84 | E22: 124.84
A23: 2101101 | B23: 行政单位医疗 | C23: 124.84 | D23: 124.84 | E23: 124.84
A24: 221 | B24: 住房保障支出 | C24: 187.26 | D24: 187.26 | E24: 187.26
A25: 22102 | B25: 住房改革支出 | C25: 187.26 | D25: 187.26 | E25: 187.26
A26: 2210201 | B26: 住房公积金 | C26: 187.26 | D26: 187.26 | E26: 187.26
A27: 总计

Sheet 财政拨款收支总体情况表
A2: 2023年财政拨款收支总体情况表
A3: 部门：114_临湘市市场监督管理局
A4: 单位：万元
A5: 收 入 | C5: 支 出
A6: 项目 | B6: 预算数 | C6: 项目 | D6: 预算数
A7: 一、本年收入 | B7: 3,223.50 | C7: 一、本年支出 | D7: 3,223.50
A8: （一）一般公共预算拨款 | B8: 3,223.50 | C8: 一、[201]一般公共服务支出 | D8: 2,644.46
A9: 1.财政补助收入 | B9: 3,223.50 | C9: 二、[202]外交支出
A10: 2.纳入一般公共预算管理的非税收入 | C10: 三、[203]国防支出
A11: 3.上级补助收入 | C11: 四、[204]公共安全支出
A12: 4.上年结转 | C12: 五、[205]教育支出
A13: 5.体制分成 | C13: 六、[206]科学技术支出
A14: （二）政府性基金预算拨款 | C14: 七、[207]文化旅游体育与传媒支出
C15: 八、[208]社会保障和就业支出 | D15: 266.95
C16: 九、[209]社会保险基金支出
C17: 十、[210]卫生健康支出 | D17: 124.84
C18: 十一、[211]节能环保支出
C19: 十二、[212]城乡社区支出
C20: 十三、[213]农林水支出
C21: 十四、[214]交通运输支出
C22: 十五、[215]资源勘探工业信息等支出
C23: 十六、[216]商业服务业等支出
C24: 十七、[217]金融支出
C25: 十八、[219]援助其他地区支出
C26: 十九、[220]自然资源海洋气象等支出
C27: 二十、[221]住房保障支出 | D27: 187.26
C28: 二十一、[222]粮油物资储备支出
C29: 二十二、[223]国有资本经营预算支出
C30: 二十三、[224]灾害防治及应急管理支出
C31: 二十四、[227]预备费
C32: 二十五、[229]其他支出
C33: 二十六、[230]转移性支出
C34: 二十七、[231]债务还本支出
C35: 二十八、[232]债务付息支出
C36: 二十九、[233]债务发行费用支出
C37: 三十、[234]抗疫特别国债安排的支出
C38: 二、结转下年
A39: 收入总计 | B39: 3,223.50 | C39: 支出总计 | D39: 3,223.50

Sheet 一般公共预算支出情况表
A2: 2023年一般公共预算支出情况表
A3: 部门：114_临湘市市场监督管理局
A4: 单位：万元
A5: 科目编码 | B5: 科目名称 | C5: 合计 | D5: 基本支出 | G5: 项目支出
D6: 小计 | E6: 人员经费 | F6: 公用经费
A7: 201 | B7: 一般公共服务支出 | C7: =SUM(D7+G7) -> 2,644.46 | D7: =SUM(E7:F7) -> 1,983.70 | E7: 1,714.50 | F7: 269.20 | G7: 660.76
A8: 20138 | B8: 市场监督管理事务 | C8: =SUM(D8+G8) -> 2,644.46 | D8: =SUM(E8:F8) -> 1,983.70 | E8: 1,714.50 | F8: 269.20 | G8: 660.76
A9: 2013801 | B9: 行政运行 | C9: 1,983.70 | D9: 1,983.70 | E9: 1,714.50 | F9: 269.20
A10: 2013804 | B10: 市场主体管理 | C10: 7.00 | D10: 0.00 | G10: 7.00
A11: 2013805 | B11: 市场秩序执法 | C11: 5.00 | D11: 0.00 | G11: 5.00
A12: 2013816 | B12: 食品安全监管 | C12: 648.76 | D12: 0.00 | G12: 648.76
A13: 208 | B13: 社会保障和就业支出 | C13: 266.95 | D13: 266.95 | E13: 266.95
A14: 20805 | B14: 行政事业单位养老支出 | C14: 250.94 | D14: 250.94 | E14: 250.94
A15: 2080505 | B15: 机关事业单位基本养老保险缴费支出 | C15: 249.52 | D15: 249.52 | E15: 249.52
A16: 2080506 | B16: 机关事业单位职业年金缴费支出 | C16: 1.41 | D16: 1.41 | E16: 1.41
A17: 20899 | B17: 其他社会保障和就业支出 | C17: 16.01 | D17: 16.01 | E17: 16.01
A18: 2089999 | B18: 其他社会保障和就业支出 | C18: 16.01 | D18: 16.01 | E18: 16.01
A19: 210 | B19: 卫生健康支出 | C19: 124.84 | D19: 124.84 | E19: 124.84
A20: 21011 | B20: 行政事业单位医疗 | C20: 124.84 | D20: 124.84 | E20: 124.84
A21: 2101101 | B21: 行政单位医疗 | C21: 124.84 | D21: 124.84 | E21: 124.84
A22: 221 | B22: 住房保障支出 | C22: 187.26 | D22: 187.26 | E22: 187.26
A23: 22102 | B23: 住房改革支出 | C23: 187.26 | D23: 187.26 | E23: 187.26
A24: 2210201 | B24: 住房公积金 | C24: 187.26 | D24: 187.26 | E24: 187.26
A26: 总计 | C26: 3,223.50 | D26: 2,562.74 | E26: =SUM(E7+E13+E19+E22) -> 2,293.55 | F26: =SUM(F7) -> 269.20 | G26: 660.76

Sheet 一般公共预算基本支出情况表
A2: 2023年一般公共预算基本支出情况表
A3: 部门：114_临湘市市场监督管理局
A4: 单位：万元
A5: 部门预算支出经济分类科目 | C5: 本年一般公共预算基本支出
A6: 科目编码 | B6: 科目名称 | C6: 合计 | D6: 人员经费 | E6: 公用经费
A7: 301 | B7: 工资福利支出 | C7: =SUM(D7:E7) -> 2,289.61 | D7: =SUM(D8:D17) -> 2,289.61
A8: 30102 | B8: 津贴补贴 | C8: 387.12 | D8: 387.12
A9: 30199 | B9: 其他工资福利支出 | C9: 59.29 | D9: 59.29
A10: 30107 | B10: 绩效工资 | C10: 226.55 | D10: 226.55
A11: 30101 | B11: 基本工资 | C11: 988.18 | D11: 988.18
A12: 30103 | B12: 奖金 | C12: 49.43 | D12: 49.43
A13: 30108 | B13: 机关事业单位基本养老保险缴费 | C13: 249.52 | D13: 249.52
A14: 30112 | B14: 其他社会保障缴费 | C14: 16.01 | D14: 16.01
A15: 30110 | B15: 职工基本医疗保险缴费 | C15: 124.84 | D15: 124.84
A16: 30113 | B16: 住房公积金 | C16: 187.26 | D16: 187.26
A17: 30109 | B17: 职业年金缴费 | C17: 1.41 | D17: 1.41
A18: 302 | B18: 商品和服务支出 | C18: =SUM(D18:E18) -> 269.20 | E18: =SUM(E19:E34) -> 269.20
A19: 30205 | B19: 水费 | C19: 2.00 | E19: 2.00
A20: 30207 | B20: 邮电费 | C20: 3.00 | E20: 3.00
A21: 30208 | B21: 取暖费 | C21: 10.00 | E21: 10.00
A22: 30211 | B22: 差旅费 | C22: 20.00 | E22: 20.00
A23: 30213 | B23: 维修费 | C23: 9.64 | E23: 9.64
A24: 30214 | B24: 租赁费 | C24: 4.50 | E24: 4.50
A25: 30215 | B25: 会议费 | C25: 4.00 | E25: 4.00
A26: 30216 | B26: 培训费 | C26: 6.00 | E26: 6.00
A27: 30206 | B27: 电费 | C27: 20.00 | E27: 20.00
A28: 30299 | B28: 其他商品和服务支出 | C28: 22.06 | E28: 22.06
A29: 30228 | B29: 工会经费 | C29: 30.00 | E29: 30.00
A30: 30226 | B30: 劳务费 | C30: 20.00 | E30: 20.00
A31: 30217 | B31: 公务接待费 | C31: 10.00 | E31: 10.00
A32: 30231 | B32: 公务用车运行维护费 | C32: 15.00 | E32: 15.00
A33: 30202 | B33: 印刷费 | C33: 45.00 | E33: 45.00
A34: 30201 | B34: 办公费 | C34: 48.00 | E34: 48.00
A35: 303 | B35: 对个人和家庭的补助 | C35: 3.93 | D35: 3.93
A36: 30304 | B36: 抚恤金 | C36: 3.93 | D36: 3.93
A37: 合 计 | C37: =SUM(C18+C7+C35) -> 2,562.74 | D37: =SUM(D18+D7+D35) -> 2,293.54 | E37: 269.20

Sheet 一般公共预算“三公”经费预算表
A2: 2023年一般公共预算“三公”经费预算表
A3: 部门：114_临湘市市场监督管理局
C4: 单位：万元
A5: 单位 | C5: 三公经费
A6: 单位编码 | B6: 单位名称 | C6: “三公”经费合计 | D6: 因公出国（境）费 | E6: 公务用车购置及运行费 | H6: 公务接待费
E7: 小计 | F7: 公务用车购置费 | G7: 公务用车运行费
A8: 总计： | C8: 25.00 | D8: 0.00 | E8: 15.00 | F8: 0.00 | G8: 15.00 | H8: 10.00
A9: 部门：114_临湘市市场监督管理局 | C9: 25.00 | D9: 0.00 | E9: 15.00 | F9: 0.00 | G9: 15.00 | H9: 10.00
A10: 114001 | B10: 临湘市市场监督管理局 | C10: 25.00 | D10: 0.00 | E10: 15.00 | F10: 0.00 | G10: 15.00 | H10: 10.00

Sheet 政府性基金预算支出情况表
A2: 2023年政府性基金预算支出情况表
A3: 部门：114_临湘市市场监督管理局
A4: 单位：万元
A5: 科目编码 | B5: 科目名称 | C5: 本年政府性基金预算支出
C6: 合计 | D6: 基本支出 | E6: 项目支出
A10: 合计：
A12: 备注：2023年本部门无政府性基金预算，故2023年政府性基金预算表为空。

Sheet 整体支出绩效目标表
S1: 部门公开表22
A2: 整体支出绩效目标表
A3: 单位：部门：114_临湘市市场监督管理局
Q4: 金额单位：万元
A5: 单位编码 | B5: 单位名称 | C5: 年度预算申请 | J5: 整体绩效目标 | K5: 部门整体支出年度绩效目标
C6: 资金总额 | D6: 按收入性质分 | H6: 按支出性质分
D7: 一般公共预算 | E7: 政府性基金拨款 | F7: 财政专户管理资金 | G7: 其他资金 | H7: 基本支出 | I7: 项目支出 | K7: 一级指标 | L7: 二级指标 | M7: 三级指标 | N7: 指标值类型 | O7: 指标值 | P7: 计量单位 | Q7: 指标解释 | R7: 评（扣）分标准 | S7: 备注
A8: 114001 | B8: 临湘市市场监督管理局 | C8: 3,223.50 | D8: 3,223.50 | H8: 2,562.74 | I8: 660.76 | J8: 疫情防控；优化营商环境；市场监管执法；干部队伍建设； | K8: 产出指标 | L8: 数量指标 | M8: 行政处罚信息公示 | O8: 100 | P8: 百分数 | Q8: 公示率 | R8: 0.1分/未公示数
M9: 食品抽检 | O9: 1450 | P9: 批次 | Q9: 抽检批次 | R9: 0.01分/批次
L10: 质量指标 | M10: 工业产品监督抽查 | O10: 100 | P10: 百分数 | Q10: 抽查率 | R10: 0.1分/未抽查数
M11: 市场巡查 | O11: 100 | P11: 百分数 | Q11: 覆盖率 | R11: 0.1分/未覆盖数
M12: 检验质量 | O12: 100 | P12: 百分数 | Q12: 检验率 | R12: 0.1分/未检验数
L13: 时效指标 | M13: 完成时间 | O13: 12月31日 | P13: 时间 | Q13: 完成时间 | R13: 1分/未完成数
L14: 成本指标 | M14: 资金支出 | O14: 100 | P14: 百分数 | Q14: 支出率 | R14: 1分/百分比
K15: 效益指标 | L15: 经济效益指标 | M15: 无 | O15: 无 | P15: 无 | Q15: 无 | R15: 无
L16: 社会效益指标 | M16: 优化营商环境 | O16: 100 | P16: 百分数 | Q16: 优化营商环境 | R16: 1分/百分比
M17: 市场监管执法 | O17: 100 | P17: 百分数 | Q17: 重点领域执法 | R17: 1分/百分比
M18: 食品监督抽查 | O18: 100 | P18: 百分数 | Q18: 关键食品抽检 | R18: 1分/百分比
L19: 生态效益指标 | M19: 无 | O19: 无 | P19: 无 | Q19: 无 | R19: 无
L20: 可持续影响指标 | M20: 无 | O20: 无 | P20: 无 | Q20: 无 | R20: 无
K21: 满意度指标 | L21: 服务对象满意度指标 | M21: 群众对市场监管满意 | O21: 100 | P21: 百分数 | Q21: 满意度 | R21: 1分/百分比

Sheet 项目支出绩效目标表
M1: 部门公开表21
C2: 项目支出绩效目标表
A3: 部门：114_临湘市市场监督管理局 | L3: 金额单位：万元
A4: 单位代码 | B4: 单位（专项）名称 | C4: 资金总额 | D4: 实施期绩效目标 | E4: 绩效指标
E5: 一级指标 | F5: 二级指标 | G5: 三级指标 | H5: 指标值 | I5: 指标值内容 | J5: 评（扣分标准） | K5: 度量单位 | L5: 指标值类型 | M5: 备注
A6: 114001 | B6: 临湘市市场监督管理局 | C6: 660.76
A7: 114001 | B7: 其他市场监管 | C7: 521.76 | D7: 其他市场监管 | E7: 成本指标 | F7: 经济成本指标 | G7: 控制在预算内 | H7: 591.76 | I7: 控制在预算内 | J7: 未达指标酌情扣分 | K7: 万元 | L7: 定量
F8: 社会成本指标 | G8: 无 | H8: 无 | I8: 无 | J8: 未达指标酌情扣分 | K8: 无 | L8: 定性
F9: 生态环境成本指标 | G9: 无 | H9: 无 | I9: 无 | J9: 未达指标酌情扣分 | K9: 无 | L9: 定性
E10: 产出指标 | F10: 数量指标 | G10: 其他市场监管 | H10: 完成 | I10: 完成 | J10: 未达指标酌情扣分 | K10: 个 | L10: 定性
F11: 时效指标 | G11: 按时按质完成 | H11: 完成 | I11: 2023年12月31日 | J11: 未达指标酌情扣分 | K11: 月 | L11: 定性
F12: 质量指标 | G12: 按时按质完成 | H12: 完成 | I12: 完成 | J12: 未达指标酌情扣分 | K12: 完成 | L12: 定性
E13: 满意度指标 | F13: 服务对象满意度指标 | G13: 大众对市场监管水平满意度提升 | H13: 95%以上 | I13: ≥95% | J13: 未达指标酌情扣分 | K13: % | L13: ≥
E14: 效益指标 | F14: 经济效益指标 | G14: 无 | H14: 无 | I14: 无 | J14: 未达指标酌情扣分 | K14: 无 | L14: 定性
F15: 社会效益指标 | G15: 提高市场监管水平 | H15: 提高 | I15: 提高 | J15: 未达指标酌情扣分 | K15: 无 | L15: 定性
F16: 生态效益指标 | G16: 无 | H16: 无 | I16: 无 | J16: 未达指标酌情扣分 | K16: 无 | L16: 定性
A17: 114001 | B17: 食品安全抽样检验 | C17: 127.00 | D17: 食品安全抽样检验 | E17: 成本指标 | F17: 经济成本指标 | G17: 控制在预算内 | H17: 127 | I17: 控制在预算内 | J17: 未达标酌情扣分 | K17: 万元 | L17: 定量
F18: 社会成本指标 | G18: 无 | H18: 无 | I18: 无 | J18: 未达标酌情扣分 | K18: 无 | L18: 定性
F19: 生态环境成本指标 | G19: 无 | H19: 无 | I19: 无 | J19: 未达标酌情扣分 | K19: 无 | L19: 定性
E20: 产出指标 | F20: 数量指标 | G20: 食品安全监管抽样 | H20: 600 | I20: 抽检批次 | J20: 未达标酌情扣分 | K20: 批次 | L20: 定量
F21: 质量指标 | G21: 按时按质完成 | H21: 完成 | I21: 完成 | J21: 未达标酌情扣分 | K21: 良好 | L21: 定性
F22: 时效指标 | G22: 按时按质完成 | H22: 完成 | I22: 2023年12月31日 | J22: 未达标酌情扣分 | K22: 完成 | L22: 定性
E23: 效益指标 | F23: 经济效益指标 | G23: 无 | H23: 无 | I23: 无 | J23: 未达标酌情扣分 | K23: 无 | L23: 定性
F24: 社会效益指标 | G24: 提高食品监管水平 | H24: 提高 | I24: 提高 | J24: 未达标酌情扣分 | K24: 无 | L24: 定性
F25: 生态效益指标 | G25: 无 | H25: 无 | I25: 无 | J25: 未达标酌情扣分 | K25: 无 | L25: 定性
E26: 满意度指标 | F26: 服务对象满意度指标 | G26: 大众对食品抽检满意度提升 | H26: 95%以上 | I26: ≥95% | J26: 未达标酌情扣分 | K26: % | L26: ≥
A27: 114001 | B27: 市场监管 | C27: 7.00 | D27: 市场监管 | E27: 效益指标 | F27: 生态效益指标 | G27: 不适用 | H27: 不适用 | I27: 不适用 | J27: 未达指标酌情扣分 | K27: 无 | L27: 定性
F28: 社会效益指标 | G28: 市场监管水平 | H28: 提高 | I28: 提高 | J28: 未达指标酌情扣分 | K28: 无 | L28: 定性
F29: 经济效益指标 | G29: 不适用 | H29: 不适用 | I29: 不适用 | J29: 未达指标酌情扣分 | K29: 无 | L29: 定性
E30: 产出指标 | F30: 时效指标 | G30: 按时按质完成 | H30: 2023年12月31日 | I30: 完成 | J30: 未达指标酌情扣分 | K30: 月 | L30: 定性
F31: 质量指标 | G31: 按时按质完成 | H31: 完成 | I31: 完成 | J31: 未达指标酌情扣分 | K31: 良好 | L31: 定性
F32: 数量指标 | G32: 商事制度改革等 | H32: 完成 | I32: 完成 | J32: 未达指标酌情扣分 | K32: 完成 | L32: 定性
E33: 成本指标 | F33: 生态环境成本指标 | G33: 无 | H33: 无 | I33: 无 | J33: 未达指标酌情扣分 | K33: 无 | L33: 定性
F34: 社会成本指标 | G34: 无 | H34: 无 | I34: 无 | J34: 未达指标酌情扣分 | K34: 无 | L34: 定性
F35: 经济成本指标 | G35: 控制在预算内 | H35: 7 | I35: 控制在预算内 | J35: 未达指标酌情扣分 | K35: 万元 | L35: 定量
E36: 满意度指标 | F36: 服务对象满意度指标 | G36: 大众对市场监管水平满意度提升 | H36: ≥95% | I36: ≥95% | J36: 未达指标酌情扣分 | K36: % | L36: ≥
A37: 114001 | B37: 行政执法 | C37: 5.00 | D37: 行政执法 | E37: 效益指标 | F37: 生态效益指标 | G37: 无 | H37: 无 | I37: 无 | J37: 未达指标酌情扣分 | K37: 无 | L37: 定性
F38: 社会效益指标 | G38: 提高执法水平 | H38: 提高 | I38: 提高 | J38: 未达指标酌情扣分 | K38: 无 | L38: 定性
F39: 经济效益指标 | G39: 无 | H39: 无 | I39: 无 | J39: 未达指标酌情扣分 | K39: 无 | L39: 定性
E40: 产出指标 | F40: 时效指标 | G40: 按时按质完成 | H40: 完成 | I40: 2023年12月31日 | J40: 未达指标酌情扣分 | K40: 月 | L40: 定性
F41: 数量指标 | G41: 无传销社区等 | H41: 完成 | I41: 完成 | J41: 未达指标酌情扣分 | K41: 个 | L41: 定性
F42: 质量指标 | G42: 按时按质完成 | H42: 完成 | I42: 完成 | J42: 未达指标酌情扣分 | K42: 完成 | L42: 定性
E43: 满意度指标 | F43: 服务对象满意度指标 | G43: 大众对行政执法工作满意度提升 | H43: ≥95% | I43: ≥95% | J43: 未达指标酌情扣分 | K43: % | L43: ≥
E44: 成本指标 | F44: 生态环境成本指标 | G44: 无 | H44: 无 | I44: 无 | J44: 未达指标酌情扣分 | K44: 无 | L44: 定性
F45: 社会成本指标 | G45: 无 | H45: 无 | I45: 无 | J45: 未达指标酌情扣分 | K45: 无 | L45: 定性
F46: 经济成本指标 | G46: 控制在预算内 | H46: 5 | I46: 控制在预算内 | J46: 未达指标酌情扣分 | K46: 万元 | L46: 定量
